Cogmind - Beta 15 @@@ ROGUE MODE // 2025.06.22 @ 06:56:26 Player: Sen Result: Destroyed by Y-45 Defender with Heavy Assault Rifle Performance ------------- Evolutions (0) 0 Regions Visited (3) 600 Robots Destroyed (17) 85 Value Destroyed (356) 356 Prototype IDs (0) 0 Alien Tech Used (0) 0 Bonus (-12) -12 TOTAL SCORE: 1029 Bonus ------- Friendly Fire -12 Cogmind --------- Core Integrity 0/250 Matter 300/300 Energy 265/265 System Corruption 0% Temperature Cool (9) Movement Walking (140) Location -9/Recycling Parts ------- > --- POWER (1) -------- Improved Ion Engine > --- PROPULSION (2) --- Makeshift Leg Makeshift Leg > --- UTILITY (2) ------ Small Storage Unit Subdweller Optics > --- WEAPON (2) ------- Particle Gun Heavy Assault Rifle > --- INVENTORY (8) ---- Subdweller Power Source Subdweller Monowheel Subdweller Monowheel Scrap Shield Scrap Shield Fragment (48) Scrap Shield Fragment (47) Scrap Shield Fragment (47) Peak State ------------ > --- POWER ------------ Improved Ion Engine > --- PROPULSION ------- Makeshift Leg Makeshift Leg > --- UTILITY ---------- Small Storage Unit Subdweller Optics > --- WEAPON ----------- Particle Gun Heavy Assault Rifle > --- INVENTORY -------- Subdweller Power Source Subdweller Monowheel Subdweller Monowheel Scrap Shield Scrap Shield Fragment Scrap Shield Fragment Scrap Shield Fragment [Rating: 18] Favorites ----------- Power Ion Engine Engine Ion Engine Power Core Light Nuclear Core Propulsion Aluminum Leg Leg Aluminum Leg Utility Small Storage Unit Device Subdweller Optics Storage Small Storage Unit Weapon Small Laser Energy Gun Small Laser Ballistic Gun Heavy Assault Rifle Build | -11 -10 -10 -9 ------- Run | Yrd Mat Sub Rec Slots Evolved . | . . . . Power . | . . . . Propulsion . | . . . . Utility . | . . . . Weapon . | . . . . Parts Attached 24 | 6 7 9 2 Power 5 | 1 1 2 1 Engine 4 | 1 . 2 1 Core 1 | . 1 . . Reactor . | . . . . Propulsion 8 | 2 3 3 . Treads . | . . . . Leg 8 | 2 3 3 . Wheel . | . . . . Hover . | . . . . Flight . | . . . . Utility 6 | 1 2 3 . Device 5 | . 2 3 . Storage 1 | 1 . . . Processor . | . . . . Hackware . | . . . . Protection . | . . . . Artifact . | . . . . Weapon 5 | 2 1 1 1 Energy Gun 4 | 2 1 1 . Energy Cannon . | . . . . Ballistic Gun 1 | . . . 1 Ballistic Cannon . | . . . . Launcher . | . . . . Special Weapon . | . . . . Impact Weapon . | . . . . Slashing Weapon . | . . . . Piercing Weapon . | . . . . Special Melee Weapon . | . . . . Unidentified Prototypes . | . . . . Parts Lost 7 | . 1 6 . Power 2 | . 1 1 . Propulsion 2 | . . 2 . Utility 2 | . . 2 . Weapon 1 | . . 1 . Highest Loss Streak 4 | . 1 4 . To Critical Strikes . | . . . . Average Backups 4 | 1 4 4 4 Power 1 | . 1 1 1 Propulsion 1 | . 1 1 2 Utility . | . . 1 1 Weapon . | . 1 . . Tool/Special . | . . . . Unused Backups 8 | . 2 2 4 Power 1 | . . . 1 Propulsion 4 | . 2 . 2 Utility 2 | . . 1 1 Weapon 1 | . . 1 . Tool/Special . | . . . . Average Slot Usage (%) 91 | . 94 90 86 Engine 13 | . 11 13 14 Leg 27 | . 28 27 28 Device 10 | . 9 11 14 Storage 14 | . 14 14 14 Energy Gun 23 | . 28 23 14 Peak Build Rating 18 | 6 10 15 18 Average Rating 9 | 4 7 10 15 On Entrance 7 | . 6 10 15 Naked Turns . | . . . . Heaviest Build 20 | 12 15 15 20 Greatest Support 40 | 20 20 40 40 Greatest Overweight (x) 1 | . . 1 . Average Overweight (x) . | . . . . Largest Inventory Capacity 8 | 8 8 8 8 Average Capacity 7 | 6 8 8 8 Most Carried 8 | 3 8 8 8 Average Carried 6 | 1 5 7 8 Final Capacity 8 | 8 8 8 8 Final Carried 8 | 3 8 8 8 Class Distribution -------------------- 66% | Mutant 33% | Scavenger-Mutant Dominant Class ---------------- Mutant | -10/Materials Mutant | -10/Subcaves Scavenger-Mutant | -9/Recycling Resources | -11 -10 -10 -9 ----------- Run | Yrd Mat Sub Rec Matter Collected 455 | 173 162 100 20 Remotely . | . . . . Salvage Created 552 | . 387 165 . Parts 36 | . 21 15 . Haulers Intercepted 1 | . 1 . . Recyclers Shooed 3 | . 3 . . Parts Field Recycled . | . . . . Retrieved Matter . | . . . . Parts Self-Destructed 22 | . . 22 . Prevented . | . . . . Kills | -11 -10 -10 -9 ------- Run | Yrd Mat Sub Rec Combat Hostiles Destroyed 13 | . 5 8 . Guns 13 | . 5 8 . Classes Destroyed 7 | . 5 2 . Builder 1 | . 1 . . Tunneler 1 | . 1 . . Hauler 1 | . 1 . . Recycler 1 | . 1 . . Swarmer 6 | . . 6 . Grunt 5 | . 5 . . Subdweller 2 | . . 2 . Best Kill Streak 3 | . 3 3 . Combat Bots Only 3 | . 2 3 . Max Kills in Single Turn 1 | . 1 1 . Gunslinging . | . . . . Exploded . | . . . . Melee . | . . . . Uniques/NPCs Destroyed . | . . . . Combat | -11 -10 -10 -9 -------- Run | Yrd Mat Sub Rec Hostile Shots Fired 154 | . 26 126 2 Missed 73 | . 6 67 . Hits 81 | . 20 59 2 Projectile 81 | . 20 59 2 AOE 2 | . . 2 . Critical Strikes 1 | . 1 . . Damage Taken 1194 | . 239 924 31 Core 262 | . 50 195 17 Absorbed by Shields . | . . . . Core Remaining (%) 100 | 100 . . . Volleys Fired 68 | . 28 40 . Largest 2 | . 2 2 . Hottest 105 | . 80 105 . Shots Fired 118 | . 56 62 . Gun 118 | . 56 62 . Cannon . | . . . . Launcher . | . . . . Special . | . . . . Kinetic . | . . . . Thermal 118 | . 56 62 . Explosive . | . . . . Electromagnetic . | . . . . Robot Hit Streak 11 | . 7 11 . Robot Miss Streak 4 | . 4 2 . Penetration Max . | . . . . Secondary Targets 2 | . 1 1 . Max Gunslinging Chain 1 | . 1 1 . Shots Hit Robots 74 | . 30 44 . Core Hits 34 | . 21 13 . Critical Kills . | . . . . Critical Parts Destroyed . | . . . . Critical Strikes 3 | . . 3 . Burn 3 | . . 3 . Melee Attacks . | . . . . Impact . | . . . . Slashing . | . . . . Piercing . | . . . . Sneak Attacks . | . . . . Combat Hostiles . | . . . . Follow-up Attacks . | . . . . Damage Inflicted 1048 | . 374 674 . Guns 1048 | . 374 674 . Cannons . | . . . . Explosions . | . . . . Melee . | . . . . Ramming . | . . . . Kinetic . | . . . . Thermal 1048 | . 374 674 . Explosive . | . . . . Electromagnetic . | . . . . Impact . | . . . . Slashing . | . . . . Piercing . | . . . . Highest Corruption . | . . . . Average Corruption . | . . . . Corruption Purged . | . . . . Corruption Blocked . | . . . . Overload Shots . | . . . . Overflow Damage . | . . . . Projectiles . | . . . . Explosions . | . . . . Melee . | . . . . Knockbacks . | . . . . Impact . | . . . . Kinetic . | . . . . Secondary . | . . . . Self-Inflicted Damage . | . . . . Shots . | . . . . Rammed . | . . . . Targets Rammed . | . . . . Kicked . | . . . . Crushed . | . . . . Highest Temperature 234 | . 234 10 . Average Temperature 104 | . 113 2 . Received Heat Transfer 477 | . 156 312 9 Siege Activations . | . . . . Martial Activations . | . . . . Shielding Activations . | . . . . Robots Disrupted . | . . . . Combat Hostiles . | . . . . Robots Corrupted . | . . . . Combat Hostiles . | . . . . Parts Fried . | . . . . Impact Corruptions . | . . . . Robots Melted . | . . . . Combat Hostiles . | . . . . Parts Melted 1 | . 1 . . Heat Transferred 2632 | . 850 1782 . Parts Sabotaged . | . . . . Parts Stolen . | . . . . Parts Stripped . | . . . . Power Chain Reactions . | . . . . Alert | -11 -10 -10 -9 ------- Run | Yrd Mat Sub Rec Maximum Alert Level . | . . . . Low Security (%) 100 | 100 100 . 100 Level 1 . | . . . . Level 2 . | . . . . Level 3 . | . . . . Level 4 . | . . . . Level 5 . | . . . . High Security . | . . . . Max Security . | . . . . Peak Influence 60 | . 60 . 35 Initial 35 | . . . 35 Average 15 | . 18 . 13 Influence Increases 328 | . 160 160 8 Destroy 0b10 Robot/C 220 | . 100 120 . Destroy 0b10 Robot/NC 20 | . 20 . . Destroy Leader 42 | . 32 10 . Successful Hack 16 | . 8 . 8 Lose Combat Pursuer 30 | . . 30 . Influence Decreases 328 | . 126 120 82 Entered New Map 56 | . . 17 39 Time Decay 252 | . 116 93 43 Lost Part 20 | . 10 10 . Squads Dispatched 1 | . 1 . . Investigation . | . . . . Extermination . | . . . . Reinforcement 1 | . 1 . . Assault . | . . . . Garrison . | . . . . Intercept . | . . . . Searches Triggered . | . . . . Construction Impeded . | . . . . Haulers Reinforced . | . . . . Active Scanning Responses . | . . . . Cargo Convoy Interrupts . | . . . . Stealth | -11 -10 -10 -9 --------- Run | Yrd Mat Sub Rec Distress Signals 1 | . 1 . . Communications Jammed . | . . . . Distress Signals . | . . . . Times Spotted 35 | . 11 23 1 Peak Tracking Total 6 | . 3 6 . Tactical Retreats 1 | . . 1 . Traps | -11 -10 -10 -9 ------- Run | Yrd Mat Sub Rec Traps Triggered . | . . . . Indirectly . | . . . . Trap Hack Attempts . | . . . . Triggered . | . . . . Disarmed . | . . . . Reprogrammed . | . . . . Reused . | . . . . Traps Extracted . | . . . . Installed . | . . . . Triggered . | . . . . Machines | -11 -10 -10 -9 ---------- Run | Yrd Mat Sub Rec Machines Disabled 1 | . . 1 . Max in Single Turn 1 | . . 1 . Machines Repaired . | . . . . Machines Dismantled . | . . . . Machines Sabotaged . | . . . . Overloaded Fab Kills . | . . . . Hacking | -11 -10 -10 -9 --------- Run | Yrd Mat Sub Rec Machines Accessed 5 | . 2 . 3 Terminals 2 | . 1 . 1 Fabricators . | . . . . Repair Stations . | . . . . Recycling Units 3 | . 1 . 2 Scanalyzers . | . . . . Garrison Access . | . . . . Total Hacks 15 | . 6 . 9 Successful 4 | . 2 . 2 Failed 11 | . 4 . 7 Catastrophic 2 | . 1 . 1 Database Lockouts . | . . . . Manual 8 | . 3 . 5 Terminals 8 | . 4 . 4 Fabricators . | . . . . Repair Stations . | . . . . Recycling Units 7 | . 2 . 5 Scanalyzers . | . . . . Garrison Access . | . . . . Terminal Hacks 4 | . 2 . 2 Locate Traps 1 | . 1 . . Security Status 1 | . . . 1 Patrol Status 2 | . 1 . 1 Fabricator Hacks . | . . . . Repair Station Hacks . | . . . . Recycling Unit Hacks . | . . . . Scanalyzer . | . . . . Garrison Access Hacks . | . . . . Unauthorized Hacks . | . . . . Terminals . | . . . . Fabricators . | . . . . Repair Stations . | . . . . Recycling Units . | . . . . Scanalyzers . | . . . . Garrison Access . | . . . . Data Cores Recovered . | . . . . Used . | . . . . Hacking Detections 5 | . 2 . 3 Full Trace Events . | . . . . Feedback Events . | . . . . Feedback Blocked . | . . . . Robot Schematics Acquired . | . . . . Robots Built . | . . . . Authchips . | . . . . Time . | . . . . Total Robot Build Rating . | . . . . Part Schematics Acquired . | . . . . Parts Built . | . . . . Authchips . | . . . . Time . | . . . . Total Part Build Rating . | . . . . Parts Repaired . | . . . . Time . | . . . . Parts Recycled . | . . . . Recycled Matter . | . . . . Retrieved Matter . | . . . . Retrieved Components . | . . . . Parts Scanalyzed . | . . . . Part Schematics Acquired . | . . . . Parts Damaged . | . . . . Bothacking | -11 -10 -10 -9 ------------ Run | Yrd Mat Sub Rec Used RIF Installer . | . . . . Robots Hacked . | . . . . Non-combat . | . . . . Combat . | . . . . Robot Hacks Applied . | . . . . Relay Couplers Released . | . . . . Fabnet Peak Effective % . | . . . . Robots Rewired . | . . . . Allies Hacked . | . . . . Hacks Repelled . | . . . . Allies | -11 -10 -10 -9 -------- Run | Yrd Mat Sub Rec Total Allies . | . . . . Largest Group . | . . . . Highest-Rated Group . | . . . . Highest-Rated Ally . | . . . . Total Orders . | . . . . Ally Attacks . | . . . . Total Damage . | . . . . Kills . | . . . . Allies Corrupted . | . . . . Allies Melted . | . . . . Intel | -11 -10 -10 -9 ------- Run | Yrd Mat Sub Rec Active Infowar (turns) 446 | . 247 199 . Optics 154 | . . 154 . Sensors 247 | . 247 . . Seismic 45 | . . 45 . Robot Analysis Total . | . . . . Derelict Logs Recovered 1 | . . 1 . Drone Launches . | . . . . Drone Recoveries . | . . . . Exploration | -11 -10 -10 -9 ------------- Run | Yrd Mat Sub Rec Turns Passed 1197 | 74 414 555 154 Spaces Moved 742 | 54 258 325 105 Core 3 | 3 . . . Treads . | . . . . Legs 739 | 51 258 325 105 Wheels . | . . . . Hover . | . . . . Flight . | . . . . Fastest Speed 50 | 50 120 120 140 Average Speed 125 | 116 120 125 140 Slowest Speed 190 | 120 120 190 140 Overloaded Moves . | . . . . Propulsion Burnouts . | . . . . Robots Hopped . | . . . . Potential Cave-ins . | . . . . Cave-ins Triggered . | . . . . Exploration Rate (%) 18 | 4 23 29 18 Regions Visited 3 Branch Regions 2 Pre-discovered Areas . | . . . . Known Exits Taken 1 | . . 1 . Unknown Exits Taken 2 | 1 1 . . Scrap Searched . | . . . . Spaces Dug . | . . . . Terrain Destroyed . | . . . . Melee . | . . . . Projectile . | . . . . AOE . | . . . . Terrain Rammed . | . . . . Walls Destroyed . | . . . . Machines Disabled . | . . . . Actions | -11 -10 -10 -9 --------- Run | Yrd Mat Sub Rec Total 891 | 62 307 410 112 Wait 24 | . . 20 4 Move 739 | 53 257 324 105 Hop . | . . . . Pick Up 17 | 3 7 7 . Fast Attach 14 | 6 3 4 1 Attach 5 | . 1 4 . Detach 1 | . 1 . . Swap 8 | . 4 3 1 Drop 15 | . 6 8 1 Fire 68 | . 28 40 . Melee . | . . . . Ram . | . . . . Kick . | . . . . Crush . | . . . . Escape Stasis . | . . . . Rewire . | . . . . Trap . | . . . . Miscellaneous . | . . . . Route ------- -11/Scrapyard -10/Materials -10/Subcaves (discovered 2 exits: [*Mat] / *Rec) -9/Recycling History --------- Turn | Location | Event 52 | -11/Scrapyard | Discovered new exit (range 14) 75 | -11/Scrapyard | Entered Materials 310 | -10/Materials | Discovered new exit (range 10) 314 | -10/Materials | Build established: Mutant 489 | -10/Materials | Entered Subcaves 490 | -10/Subcaves | Approached by a straggling Scientist 491 | -10/Subcaves | Ambushed by Subdwellers from Twisted Machinery 558 | -10/Subcaves | Discovered new exit (range 14) 590 | -10/Subcaves | Identified exit to Recycling 682 | -10/Subcaves | Core integrity fell below 50% 837 | -10/Subcaves | Lost 4 parts (1p2n1u) 1026 | -10/Subcaves | Core integrity fell below 20% 1044 | -10/Subcaves | Entered Recycling 1098 | -9/Recycling | Build established: Scavenger-Mutant 1198 | -9/Recycling | Destroyed by Y-45 Defender with Heavy Assault Rifle Last Messages --------------- 01018_ Lgt. Assault Rifle fries itself beyond repair. 01022_ HV Slug penetrates Autobeam Turret. 01022_ HV Slug penetrates Machine. 01023_ 9X-4GK(h) destroyed. LOCATION=RECYCLING GOAL=ESCAPE 01064_ Connecting with Terminal... >>Enumerate(Guards) Retrieving latest reported positions... Security request, restricting to local area... No active security squads found. >>Enumerate(Patrols) Retrieving latest reported positions... No active patrol squads found. 01068_ Connecting with Recycling Unit... 01162_ Dropped Lgt. Ion Engine. 01176_ Acquired Hvy. Assault Rifle. 01182_ Acquired 20 matter. 01198_ Y-45 Defender springs to life. Map ----- +----------------------------------------------------+ | ?????????????????????????????????????????????????? | | ?????????????????????????????????????????????????? | | ?????????????????????????????????????????????????? | | ?????????????????????????????????????????????????? | | ?????????????????????????????????????????????????? | | ?????????????????????????????????????????????????? | | ?????????????????????????????????????????????????? | | ?????????????????????????????????????????????????? | | ?????????????????????????????????????????????????? | | ?????????????????????????????????????????????????" | | ????????????????????????# ??????????????????????"" | | ????????????????????????# ???????????????????? """ | | ????????????????????????# ?##????????????????? | | ????????????????????????# #Y##????????????????? | | ????????????????????????# ?????????????????? | | ????????????????????????# ??????????????????? | | ????????????????????????# ???????????????????? | | ????????????????????????# #????????????????????# | | ????????????????????????# #??######+#######????# | | ????????????????????????# #??# """ #????# | | ????????????????????????# #??# "Y" #????# | | ????????????????????????# #??# #????# | | ????????????????????????# #??# #????# | | ????????????????????????# #### ###### | | ????????????????????????# + + ## | | ??????????????????#######@ #### """ """ # ## | | ??????????????????# #??# """ """ # #? | | ??????????????????# ######??# """ """ + #? | | ??????????????????# #???????# """ """ ### #? | | ??????????????????# #???????# """ """ #?# ## | | ??????????????????#+#########??# #?# | | ??????????????????# #??########+#####?# | | ??????????????????# ![ ! #?????????????????# | | ??????????????????#!!% #?????????????? | | ??????????????????#! #?????????????######## | | ??????????????????# * #????????????????????? | | ??????????????????###########????????????????????? | | ?????????????????????????????????????????????????? | | ?????????????????????????????????????????????????? | | | | | | | | | | | | | | | | | | | | | | | +----------------------------------------------------+ Best States ------------- Heat Dissipation 39 Coolant Potential 50 Energy Generation 14 Energy Capacity 265 Matter Stores 300 Matter Capacity 300 Sight Range 21 Robot Scan Range 14 Terrain Scan Density 10 Evasion (%) 55 Item Schematics ----------------- None Robot Schematics ------------------ None Fabricated ------------ Nothing Repaired ---------- Nothing Alien Tech Used ----------------- None Achievements -------------- None Challenges ------------ None Game ------ Seed TerrorPoweredBooster Manual? 0 Play Time 00:17:34 Cumulative 67.0 hours Start 2025.06.22 @ 06:40:07 End 2025.06.22 @ 06:56:26 Sessions 1 Manual Loads 0 Difficulty Rogue Special Mode None Game No. 65 Rogue 65 Adventurer 0 Explorer 0 Win Type - Total 0 Types 0/0/0/0/0/0/0/0/0/0 Lore% 33 Gallery% 37 Achievement% 33 Wizard Run 0 Options --------- Layout 1 ASCII 1 Keyboard 0 Movement Numpad Keybinds 0 Fullscreen 1 Font 24/Smallcaps Map View 50x35 Zoom Use 0% Tactical HUD 1 Map Filters NONE Filters NONE Steam 1 RUN: 24a24f52-4bdd-4218-bc81-72b986bd4f0b